[Event "29th Czech Open-Rapid 2018"]
[Site "Pardubice"]
[Date "2018.07.18"]
[Round "3"]
[White "Yakimenko, Alexander A"]
[Black "Effenberger, Adam"]
[Result "1/2-1/2"]
[ECO "B40"]
[WhiteElo "2035"]
[BlackElo "1817"]
[Annotator "NA RC"]
[PlyCount "156"]
[EventDate "2018.07.18"]
[EventType "swiss"]
[EventCountry "CZE"]
[SourceTitle "playchess.com"]
[Source "ChessBase"]
[SourceQuality "1"]
[TimeControl "900+10"]

1. e4 {[%emt 0:00:00]} c5 {[%emt 0:00:00]} 2. Nf3 {[%emt 0:00:00]} e6 {[%emt 0:00:00]} 3. c3 {[%emt 0:00:03]} Nf6 {[%emt 0:00:03]} 4. e5 {[%emt 0:00:03]} Nd5 {[%emt 0:00:05]} 5. Na3 {[%emt 0:00:42]} a6 {[%emt 0:00:23]} 6. d4 {[%emt 0:01:14]} cxd4 {[%emt 0:00:07]} 7. cxd4 {[%emt 0:00:04]} Bxa3 {[%emt 0:00:36]} 8. bxa3 {[%emt 0:00:02]} Qa5+ {[%emt 0:00:14]} 9. Qd2 {[%emt 0:00:08]} Qxd2+ {[%emt 0:00:32]} 10. Bxd2 {[%emt 0:00:04]} O-O {[%emt 0:00:32]} 11. Bb4 {[%emt 0:00:36]} Re8 {[%emt 0:01:24]} 12. Bd6 {[%emt 0:00:06]} b5 {[%emt 0:00:28]} 13. Bd3 {[%emt 0:01:13]} Nc6 {[%emt 0:01:10]} 14. O-O {[%emt 0:01:35]} Bb7 {[%emt 0:00:10]} 15. Bc5 {[%emt 0:01:14]} Na5 {[%emt 0:01:31]} 16. g3 {[%emt 0:01:21]} Nf4 {[%emt 0:02:16]} 17. Bxh7+ {[%emt 0:00:28]} Kxh7 {[%emt 0:00:12]} 18. Ng5+ {[%emt 0:00:01]} Kg6 {[%emt 0:00:48]} 19. gxf4 {[%emt 0:00:02]} Rh8 {[%emt 0:00:58]} 20. f3 {[%emt 0:00:26]} Rh4 {[%emt 0:00:40]} 21. Rf2 {[%emt 0:01:18]} f6 {[%emt 0:00:59]} 22. Ne4 {[%emt 0:00:14]} Rxf4 {[%emt 0:00:20]} 23. Re1 {[%emt 0:01:43]} Nc4 {[%emt 0:00:26]} 24. Rg2+ {[%emt 0:01:24]} Kf7 {[%emt 0:00:19]} 25. Rg3 {[%emt 0:00:44]} Bxe4 {[%emt 0:01:09]} 26. fxe4 {[%emt 0:00:39]} fxe5 {[%emt 0:00:22]} 27. dxe5 {[%emt 0:01:01]} Nxe5 {[%emt 0:01:03]} 28. Bd6 {[%emt 0:00:46]} Nf3+ {[%emt 0:00:23]} 29. Kf2 {[%emt 0:00:04]} Nxe1+ {[%emt 0:00:50]} 30. Bxf4 {[%emt 0:00:02]} Nc2 {[%emt 0:00:05]} 31. Be5 {[%emt 0:00:15]} g6 {[%emt 0:00:15]} 32. Rc3 {[%emt 0:00:22]} d6 {[%emt 0:00:35]} 33. Rc7+ {[%emt 0:00:21]} Ke8 {[%emt 0:00:41]} 34. Bxd6 {[%emt 0:00:27]} Nd4 {[%emt 0:00:04]} 35. Rg7 {[%emt 0:00:52]} Rd8 {[%emt 0:00:20]} 36. e5 {[%emt 0:00:08]} Nf5 {[%emt 0:00:15]} 37. Rxg6 {[%emt 0:00:01]} Nxd6 {[%emt 0:00:08]} 38. Rxe6+ {[%emt 0:00:03]} Kf7 {[%emt 0:00:11]} 39. Rxd6 {[%emt 0:00:04]} Re8 {[%emt 0:00:32]} 40. e6+ {[%emt 0:00:33]} Ke7 {[%emt 0:00:02]} 41. Rxa6 {[%emt 0:00:01]} Rc8 {[%emt 0:00:07]} 42. Ke3 {[%emt 0:00:28]} Rc2 {[%emt 0:00:06]} 43. Kd4 {[%emt 0:00:04]} Rxh2 {[%emt 0:00:05]} 44. Kc5 {[%emt 0:00:02]} Rh5+ {[%emt 0:00:19]} 45. Kb4 {[%emt 0:00:04]} Re5 {[%emt 0:00:14]} 46. Rb6 {[%emt 0:00:34]} Rxe6 {[%emt 0:00:29]} 47. Rxb5 {[%emt 0:00:02]} Re4+ {[%emt 0:00:01]} 48. Ka5 {[%emt 0:00:21]} Kd7 {[%emt 0:00:06]} 49. Rc5 {[%emt 0:00:17]} Re2 {[%emt 0:00:19]} 50. a4 {[%emt 0:00:19]} Rxa2 {[%emt 0:00:01]} 51. Kb5 {[%emt 0:00:07]} Rb2+ {[%emt 0:00:02]} 52. Ka6 {[%emt 0:00:01]} Kd6 {[%emt 0:00:07]} 53. Rc1 {[%emt 0:00:03]} Rb4 {[%emt 0:00:15]} 54. a5 {[%emt 0:00:02]} Rb2 {[%emt 0:00:01]} 55. Ka7 {[%emt 0:00:02]} Kd7 {[%emt 0:00:03]} 56. a6 {[%emt 0:00:01]} Rb3 {[%emt 0:00:01]} 57. Rc2 {[%emt 0:00:02]} Rb1 {[%emt 0:00:01]} 58. Rh2 {[%emt 0:00:33]} Rb3 {[%emt 0:00:06]} 59. Rh7+ {[%emt 0:00:02]} Kc8 {[%emt 0:00:18]} 60. Rh8+ {[%emt 0:00:04]} Kc7 {[%emt 0:00:03]} 61. Rh7+ {[%emt 0:00:01]} Kc8 {[%emt 0:00:00]} 62. Rb7 {[%emt 0:00:01]} Ra3 {[%emt 0:00:14]} 63. Rb5 {[%emt 0:00:02]} Kc7 {[%emt 0:00:33]} 64. Rc5+ {[%emt 0:00:02]} Kd6 {[%emt 0:00:01]} 65. Rc4 {[%emt 0:00:08]} Rb3 {[%emt 0:00:02]} 66. Ka8 {[%emt 0:00:05]} Kd7 {[%emt 0:00:10]} 67. a7 {[%emt 0:00:02]} Rb2 {[%emt 0:00:05]} 68. Rc1 {[%emt 0:00:03]} Rb3 {[%emt 0:00:03]} 69. Rh1 {[%emt 0:00:05]} Kc7 {[%emt 0:00:08]} 70. Rh7+ {[%emt 0:00:02]} Kc8 {[%emt 0:00:04]} 71. Rh8+ {[%emt 0:00:02]} Kc7 {[%emt 0:00:01]} 72. Rb8 {[%emt 0:00:05]} Ra3 {[%emt 0:00:04]} 73. Rb1 {[%emt 0:00:05]} Rc3 {[%emt 0:00:52]} 74. Rb7+ {[%emt 0:00:07]} Kc8 {[%emt 0:00:01]} 75. Rb8+ {[%emt 0:00:06]} Kc7 {[%emt 0:00:01]} 76. Rh8 {[%emt 0:00:04]} Rb3 {[%emt 0:00:03]} 77. Rb8 {[%emt 0:00:24]} Rc3 {[%emt 0:00:04]} 78. Rc8+ {[%emt 0:00:06]} Kxc8 1/2-1/2

[Event "29th Czech Open-Rapid 2018"]
[Site "Pardubice"]
[Date "2018.07.18"]
[Round "3"]
[White "Gschwendtner, Stanislav"]
[Black "Kutynec, Vladimir"]
[Result "0-1"]
[ECO "A92"]
[WhiteElo "2032"]
[BlackElo "2273"]
[Annotator "NA"]
[PlyCount "58"]
[EventDate "2018.07.18"]
[EventType "swiss"]
[EventCountry "CZE"]
[SourceTitle "playchess.com"]
[Source "ChessBase"]
[SourceQuality "1"]
[TimeControl "900+10"]

1. c4 {[%emt 0:00:00]} f5 {[%emt 0:00:06]} 2. d4 {[%emt 0:00:19]} Nf6 {[%emt 0:00:02]} 3. Nf3 {[%emt 0:00:05]} e6 {[%emt 0:00:22]} 4. g3 {[%emt 0:00:07]} Be7 {[%emt 0:00:02]} 5. Bg2 {[%emt 0:00:04]} O-O {[%emt 0:00:02]} 6. Bf4 {[%emt 0:00:11]} d6 {[%emt 0:00:02]} 7. Nc3 {[%emt 0:00:07]} h6 {[%emt 0:00:25]} 8. h4 {[%emt 0:00:31]} a5 {[%emt 0:00:22]} 9. a3 {[%emt 0:00:18]} Ne4 {[%emt 0:04:07]} 10. Nxe4 {[%emt 0:00:12]} fxe4 {[%emt 0:00:02]} 11. Nd2 {[%emt 0:00:06]} d5 {[%emt 0:00:31]} 12. f3 {[%emt 0:00:37]} Rxf4 {[%emt 0:02:22]} 13. gxf4 {[%emt 0:00:07]} e3 {[%emt 0:00:02]} 14. Nb3 {[%emt 0:00:55]} Bxh4+ {[%emt 0:00:08]} 15. Kf1 {[%emt 0:00:02]} dxc4 {[%emt 0:00:42]} 16. Nc5 {[%emt 0:00:23]} Bf6 {[%emt 0:03:55]} 17. Ne4 {[%emt 0:03:19]} Bxd4 {[%emt 0:02:22]} 18. Qc2 {[%emt 0:00:11]} b5 {[%emt 0:01:12]} 19. Rd1 {[%emt 0:00:06]} Nc6 {[%emt 0:00:01]} 20. Ng5 {[%emt 0:01:43]} hxg5 {[%emt 0:00:44]} 21. Qh7+ {[%emt 0:00:06]} Kf8 {[%emt 0:00:10]} 22. fxg5 {[%emt 0:00:27]} Qxg5 {[%emt 0:00:04]} 23. Qh8+ {[%emt 0:01:31]} Ke7 {[%emt 0:00:06]} 24. f4 {[%emt 0:00:32]} Qxf4+ {[%emt 0:00:18]} 25. Bf3 {[%emt 0:00:02]} Qg3 {[%emt 0:00:05]} 26. Rh2 {[%emt 0:00:05]} e5 {[%emt 0:00:02]} 27. Bxc6 {[%emt 0:00:15]} Bb7 {[%emt 0:00:16]} 28. Qxa8 Bxa8 29. Rg2 Qf4+ {Ra1 Qg3} 0-1

[Event "29th Czech Open-Rapid 2018"]
[Site "Pardubice"]
[Date "2018.07.18"]
[Round "3"]
[White "Joukl, Zdenek"]
[Black "Trost, Martin"]
[Result "*"]
[WhiteElo "2029"]
[BlackElo "1838"]
[Annotator "NA RC"]
[PlyCount "56"]
[EventDate "2018.07.18"]
[EventType "swiss"]
[EventCountry "CZE"]
[SourceTitle "playchess.com"]
[Source "ChessBase"]
[SourceQuality "1"]
[TimeControl "900+10"]

1. d4 {[%emt 0:00:00]} d5 {[%emt 0:00:00]} 2. Nf3 {[%emt 0:00:00]} Nf6 {[%emt 0:00:00]} 3. Bf4 {[%emt 0:00:08]} e6 {[%emt 0:00:00]} 4. e3 {[%emt 0:00:07]} Bd6 {[%emt 0:00:04]} 5. Ne5 {[%emt 0:00:24]} O-O {[%emt 0:01:04]} 6. Nd2 {[%emt 0:00:04]} c5 {[%emt 0:00:39]} 7. c3 {[%emt 0:00:25]} Nc6 {[%emt 0:00:19]} 8. Bd3 {[%emt 0:00:54]} Qc7 {[%emt 0:00:44]} 9. Ndf3 {[%emt 0:00:38]} Ne4 {[%emt 0:01:22]} 10. Nxc6 {[%emt 0:01:43]} Bxf4 {[%emt 0:05:16]} 11. Ne7+ {[%emt 0:02:13]} Qxe7 {[%emt 0:00:26]} 12. exf4 {[%emt 0:00:08]} b6 {[%emt 0:01:47]} 13. O-O {[%emt 0:00:31]} Bb7 {[%emt 0:00:30]} 14. Re1 {[%emt 0:00:24]} Rac8 {[%emt 0:01:09]} 15. a4 {[%emt 0:00:20]} a6 {[%emt 0:01:33]} 16. Re3 {[%emt 0:00:53]} c4 {[%emt 0:01:07]} 17. Bc2 {[%emt 0:00:30]} Rfe8 {[%emt 0:01:26]} 18. Qe2 {[%emt 0:00:52]} Nf6 {[%emt 0:00:19]} 19. Ne5 {[%emt 0:01:32]} Nd7 {[%emt 0:00:10]} 20. Rh3 {[%emt 0:01:26]} g6 {[%emt 0:00:08]} 21. Ng4 {[%emt 0:00:51]} Nf6 {[%emt 0:00:14]} 22. Nh6+ {[%emt 0:00:31]} Kg7 {[%emt 0:00:06]} 23. Re1 {[%emt 0:00:11]} Rc7 {[%emt 0:00:13]} 24. Qf3 {[%emt 0:01:02]} Ng8 {[%emt 0:00:10]} 25. Ng4 {[%emt 0:00:24]} Nf6 {[%emt 0:00:02]} 26. Ne5 {[%emt 0:00:06]} Nd7 {[%emt 0:00:08]} 27. Qe3 {[%emt 0:00:23]} Rcc8 {[%emt 0:00:18]} 28. f5 {[%emt 0:00:19]} g5 {[%emt 0:00:15]} *

[Event "29th Czech Open-Rapid 2018"]
[Site "Pardubice"]
[Date "2018.07.18"]
[Round "3"]
[White "Kolasa, Pjotrs"]
[Black "Zdrazil, Jan"]
[Result "0-1"]
[ECO "A05"]
[WhiteElo "2021"]
[BlackElo "1953"]
[Annotator "NA RC"]
[PlyCount "100"]
[EventDate "2018.07.18"]
[EventType "swiss"]
[EventCountry "CZE"]
[SourceTitle "playchess.com"]
[Source "ChessBase"]
[SourceQuality "1"]
[TimeControl "900+10"]

1. Nf3 {[%emt 0:00:00]} Nf6 {[%emt 0:00:00]} 2. c4 {[%emt 0:00:00]} g6 {[%emt 0:00:00]} 3. Nc3 {[%emt 0:00:02]} Bg7 {[%emt 0:00:00]} 4. e4 {[%emt 0:00:03]} d6 {[%emt 0:00:00]} 5. d4 {[%emt 0:00:02]} O-O {[%emt 0:00:00]} 6. h3 {[%emt 0:00:02]} e5 {[%emt 0:00:02]} 7. d5 {[%emt 0:00:02]} Nbd7 {[%emt 0:00:10]} 8. Be3 {[%emt 0:00:10]} Nh5 {[%emt 0:00:27]} 9. Nd2 {[%emt 0:00:44]} a6 {[%emt 0:00:48]} 10. g3 {[%emt 0:00:09]} Rb8 {[%emt 0:01:54]} 11. Be2 {[%emt 0:00:04]} Nhf6 {[%emt 0:00:02]} 12. Qc2 {[%emt 0:00:16]} c6 {[%emt 0:02:21]} 13. g4 {[%emt 0:00:23]} cxd5 {[%emt 0:00:11]} 14. cxd5 {[%emt 0:00:06]} b5 {[%emt 0:00:55]} 15. b4 {[%emt 0:01:04]} Nb6 {[%emt 0:00:26]} 16. Nb3 {[%emt 0:00:33]} Qc7 {[%emt 0:00:48]} 17. Rc1 {[%emt 0:03:11]} Nc4 {[%emt 0:01:08]} 18. Bxc4 {[%emt 0:00:04]} bxc4 {[%emt 0:01:19]} 19. Na5 {[%emt 0:00:04]} Rxb4 {[%emt 0:01:35]} 20. Nc6 {[%emt 0:00:02]} Rb7 {[%emt 0:00:05]} 21. Ne2 {[%emt 0:01:25]} Bxg4 {[%emt 0:02:08]} 22. hxg4 {[%emt 0:00:17]} Nxg4 {[%emt 0:00:01]} 23. Ng3 {[%emt 0:04:39]} f5 {[%emt 0:02:02]} 24. Qe2 {[%emt 0:01:14]} Nxe3 {[%emt 0:00:43]} 25. fxe3 {[%emt 0:00:06]} f4 {[%emt 0:00:01]} 26. Nf1 {[%emt 0:01:03]} Qb6 {[%emt 0:00:12]} 27. Qh2 {[%emt 0:00:35]} h6 {[%emt 0:00:24]} 28. Qd2 {[%emt 0:01:41]} fxe3 {[%emt 0:00:38]} 29. Nxe3 {[%emt 0:00:11]} Rf4 {[%emt 0:00:08]} 30. Nxc4 {[%emt 0:00:37]} Rxe4+ {[%emt 0:00:16]} 31. Kd1 {[%emt 0:00:02]} Qc7 {[%emt 0:00:32]} 32. Qd3 {[%emt 0:00:09]} Rg4 {[%emt 0:00:15]} 33. Rf1 {[%emt 0:00:11]} e4 {[%emt 0:00:11]} 34. Qa3 {[%emt 0:00:06]} Rb5 {[%emt 0:00:31]} 35. Ne3 {[%emt 0:00:13]} Rg3 {[%emt 0:00:03]} 36. Qxa6 {[%emt 0:00:10]} Rb2 {[%emt 0:00:13]} 37. Nc4 {[%emt 0:01:04]} Rd3+ {[%emt 0:00:04]} 38. Ke1 {[%emt 0:00:02]} Rh2 {[%emt 0:00:16]} 39. Rf2 {[%emt 0:00:28]} Rh1+ {[%emt 0:00:05]} 40. Rf1 {[%emt 0:00:02]} Rxf1+ {[%emt 0:00:20]} 41. Kxf1 {[%emt 0:00:01]} Qf7+ {[%emt 0:00:00]} 42. Ke1 {[%emt 0:00:04]} Qf3 {[%emt 0:00:28]} 43. Qa7 {[%emt 0:00:32]} Qh1+ {[%emt 0:00:07]} 44. Ke2 {[%emt 0:00:03]} Qg2+ {[%emt 0:00:01]} 45. Ke1 {[%emt 0:00:03]} Qh1+ {[%emt 0:00:24]} 46. Ke2 {[%emt 0:00:04]} Qxc1 {[%emt 0:00:04]} 47. Qa4 {[%emt 0:00:34]} Qh1 {[%emt 0:00:03]} 48. Ne7+ {[%emt 0:00:11]} Kh7 {[%emt 0:00:02]} 49. Qe8 {[%emt 0:00:10]} Qf3+ {[%emt 0:00:01]} 50. Ke1 {[%emt 0:00:02]} Rd1# 0-1

[Event "29th Czech Open-Rapid 2018"]
[Site "Pardubice"]
[Date "2018.07.18"]
[Round "3"]
[White "Hauschild, Rudolf jun"]
[Black "Vusatiuk, Vladimir"]
[Result "1-0"]
[ECO "C01"]
[WhiteElo "2015"]
[BlackElo "2321"]
[Annotator "NA"]
[PlyCount "86"]
[EventDate "2018.07.18"]
[EventType "swiss"]
[EventCountry "CZE"]
[SourceTitle "playchess.com"]
[Source "ChessBase"]
[SourceQuality "1"]
[TimeControl "900+10"]

1. e4 {[%emt 0:00:00]} e6 {[%emt 0:00:00]} 2. d4 {[%emt 0:00:00]} d5 {[%emt 0:00:00]} 3. exd5 {[%emt 0:00:00]} exd5 {[%emt 0:00:00]} 4. c4 {[%emt 0:00:00]} Nf6 {[%emt 0:00:00]} 5. Nc3 {[%emt 0:00:02]} Bb4 {[%emt 0:00:00]} 6. h3 {[%emt 0:00:11]} O-O {[%emt 0:00:01]} 7. Be3 {[%emt 0:00:01]} Re8 {[%emt 0:00:14]} 8. Nf3 {[%emt 0:00:05]} Ne4 {[%emt 0:00:28]} 9. Rc1 {[%emt 0:00:12]} Ng3 {[%emt 0:00:11]} 10. Rg1 {[%emt 0:01:23]} Nf5 {[%emt 0:00:14]} 11. a3 {[%emt 0:00:50]} Bxc3+ {[%emt 0:05:31]} 12. Rxc3 {[%emt 0:00:04]} c5 {[%emt 0:00:03]} 13. cxd5 {[%emt 0:00:35]} cxd4 {[%emt 0:01:02]} 14. Nxd4 {[%emt 0:00:10]} Nxe3 {[%emt 0:00:18]} 15. fxe3 {[%emt 0:00:42]} Qxd5 {[%emt 0:00:10]} 16. Nf3 {[%emt 0:00:07]} Qa5 {[%emt 0:00:31]} 17. b4 {[%emt 0:00:15]} Qb6 {[%emt 0:00:04]} 18. Qd4 {[%emt 0:00:07]} Nd7 {[%emt 0:00:46]} 19. Kf2 {[%emt 0:00:30]} Nf6 {[%emt 0:00:31]} 20. Bd3 {[%emt 0:00:26]} Qe6 {[%emt 0:00:45]} 21. Ng5 {[%emt 0:00:38]} Qe7 {[%emt 0:00:03]} 22. Bc4 {[%emt 0:00:24]} Ng4+ {[%emt 0:00:21]} 23. hxg4 {[%emt 0:00:22]} Qxg5 {[%emt 0:00:01]} 24. Bd5 {[%emt 0:00:47]} Bxg4 {[%emt 0:00:27]} 25. Rc7 {[%emt 0:00:21]} Rad8 {[%emt 0:00:56]} 26. Bxf7+ {[%emt 0:00:48]} Kh8 {[%emt 0:00:01]} 27. Qc3 {[%emt 0:00:32]} Rxe3 {[%emt 0:03:32]} 28. Qxe3 {[%emt 0:01:25]} Rd2+ {[%emt 0:00:01]} 29. Qxd2 {[%emt 0:00:03]} Qxd2+ {[%emt 0:00:01]} 30. Kg3 {[%emt 0:00:03]} Qd6+ {[%emt 0:00:03]} 31. Kxg4 {[%emt 0:00:02]} Qxc7 {[%emt 0:00:00]} 32. Rf1 {[%emt 0:00:25]} g6 {[%emt 0:00:02]} 33. Rf3 {[%emt 0:00:18]} Kg7 {[%emt 0:00:03]} 34. Bb3 {[%emt 0:00:02]} h5+ {[%emt 0:00:03]} 35. Kh3 {[%emt 0:00:05]} g5 {[%emt 0:00:00]} 36. g4 {[%emt 0:00:14]} Qc8 {[%emt 0:00:00]} 37. Rg3 {[%emt 0:00:33]} Kh6 {[%emt 0:00:00]} 38. Bd1 {[%emt 0:00:41]} Qd7 {[%emt 0:00:35]} 39. Bf3 {[%emt 0:00:04]} b6 {[%emt 0:00:55]} 40. Be2 {[%emt 0:00:10]} Qe6 {[%emt 0:00:10]} 41. Bf3 {[%emt 0:00:03]} h4 {[%emt 0:00:14]} 42. Rg1 {[%emt 0:00:02]} Qe3 {[%emt 0:00:01]} 43. Rf1 {[%emt 0:00:02]} Qxa3 {[%emt 0:00:05]} 1-0

[Event "29th Czech Open-Rapid 2018"]
[Site "Pardubice"]
[Date "2018.07.18"]
[Round "3"]
[White "Barak, Gil"]
[Black "Mojzis, Jaroslav"]
[Result "0-1"]
[ECO "C77"]
[WhiteElo "1993"]
[BlackElo "2099"]
[Annotator "NA RC"]
[PlyCount "140"]
[EventDate "2018.07.18"]
[EventType "swiss"]
[EventCountry "CZE"]
[SourceTitle "playchess.com"]
[Source "ChessBase"]
[SourceQuality "1"]
[TimeControl "900+10"]

1. e4 {[%emt 0:00:00]} e5 {[%emt 0:00:00]} 2. Nf3 {[%emt 0:00:00]} Nc6 {[%emt 0:00:00]} 3. Bb5 {[%emt 0:00:00]} a6 {[%emt 0:00:00]} 4. Ba4 {[%emt 0:00:00]} Nf6 {[%emt 0:00:00]} 5. d4 {[%emt 0:00:00]} exd4 {[%emt 0:00:02]} 6. O-O {[%emt 0:00:01]} Be7 {[%emt 0:00:04]} 7. Re1 {[%emt 0:00:01]} O-O {[%emt 0:01:43]} 8. e5 {[%emt 0:00:03]} Ne8 {[%emt 0:00:17]} 9. Nxd4 {[%emt 0:06:06]} Nxd4 {[%emt 0:00:25]} 10. Qxd4 {[%emt 0:00:02]} d6 {[%emt 0:04:15]} 11. Bxe8 {[%emt 0:03:52]} Rxe8 {[%emt 0:00:23]} 12. exd6 {[%emt 0:00:19]} Bxd6 {[%emt 0:00:12]} 13. Rxe8+ {[%emt 0:00:41]} Qxe8 {[%emt 0:00:03]} 14. Be3 {[%emt 0:00:12]} Bf5 {[%emt 0:00:35]} 15. Nc3 {[%emt 0:00:43]} Bxc2 {[%emt 0:01:18]} 16. Rc1 {[%emt 0:00:40]} Bg6 {[%emt 0:00:26]} 17. g3 {[%emt 0:01:55]} Rd8 {[%emt 0:01:11]} 18. Qc4 {[%emt 0:02:09]} h6 {[%emt 0:03:23]} 19. Nd5 {[%emt 0:00:28]} c6 {[%emt 0:01:06]} 20. Nf4 {[%emt 0:00:12]} Bf5 {[%emt 0:00:13]} 21. Qb3 {[%emt 0:00:14]} Qe4 {[%emt 0:01:19]} 22. Bb6 {[%emt 0:00:24]} Re8 {[%emt 0:00:12]} 23. Qe3 {[%emt 0:00:02]} Qxe3 {[%emt 0:00:37]} 24. Bxe3 {[%emt 0:00:04]} Be5 {[%emt 0:00:10]} 25. b3 {[%emt 0:00:07]} Rd8 {[%emt 0:00:03]} 26. Kf1 {[%emt 0:00:12]} g5 {[%emt 0:00:17]} 27. Ne2 {[%emt 0:00:16]} Bb2 {[%emt 0:00:11]} 28. Re1 {[%emt 0:00:07]} Bd3 {[%emt 0:00:19]} 29. Kg2 {[%emt 0:00:03]} Be4+ {[%emt 0:00:05]} 30. Kf1 {[%emt 0:00:01]} Bd5 {[%emt 0:00:03]} 31. Bb6 {[%emt 0:00:29]} Re8 {[%emt 0:00:03]} 32. Rb1 {[%emt 0:00:19]} Bf6 {[%emt 0:00:05]} 33. Nd4 {[%emt 0:00:08]} Be4 {[%emt 0:00:14]} 34. Rc1 {[%emt 0:00:12]} Bd3+ {[%emt 0:00:04]} 35. Kg1 {[%emt 0:00:12]} h5 {[%emt 0:00:20]} 36. Rd1 {[%emt 0:00:04]} Bg6 {[%emt 0:00:06]} 37. Nf3 {[%emt 0:00:21]} h4 {[%emt 0:00:05]} 38. Re1 {[%emt 0:00:10]} Rxe1+ {[%emt 0:00:10]} 39. Nxe1 {[%emt 0:00:01]} Kf8 {[%emt 0:00:02]} 40. Nf3 {[%emt 0:00:10]} hxg3 {[%emt 0:00:03]} 41. fxg3 {[%emt 0:00:06]} Ke7 {[%emt 0:00:06]} 42. Kf2 {[%emt 0:00:18]} Ke6 {[%emt 0:00:03]} 43. Be3 {[%emt 0:00:23]} g4 {[%emt 0:00:04]} 44. Nd4+ {[%emt 0:00:11]} Kd5 {[%emt 0:00:01]} 45. Ne2 {[%emt 0:00:03]} Ke4 {[%emt 0:00:17]} 46. Nf4 {[%emt 0:00:16]} Bf5 {[%emt 0:00:03]} 47. Ke2 {[%emt 0:00:04]} Ke5 {[%emt 0:00:23]} 48. Kd2 {[%emt 0:00:03]} Kd6 {[%emt 0:00:04]} 49. Ne2 {[%emt 0:00:17]} c5 {[%emt 0:00:05]} 50. Nc3 {[%emt 0:00:05]} b5 {[%emt 0:00:08]} 51. Ne2 {[%emt 0:00:20]} b4 {[%emt 0:00:13]} 52. Kc1 {[%emt 0:00:16]} Be7 {[%emt 0:00:23]} 53. Nf4 {[%emt 0:00:05]} Ke5 {[%emt 0:00:06]} 54. Nh5 {[%emt 0:00:21]} Ke4 {[%emt 0:00:22]} 55. Kd2 {[%emt 0:00:02]} Bd7 {[%emt 0:00:10]} 56. Nf4 {[%emt 0:00:10]} Bb5 {[%emt 0:00:12]} 57. Ne2 {[%emt 0:00:11]} c4 {[%emt 0:00:21]} 58. bxc4 {[%emt 0:00:13]} Bxc4 {[%emt 0:00:02]} 59. Nc1 {[%emt 0:00:02]} Bf6 {[%emt 0:00:13]} 60. Nb3 {[%emt 0:00:06]} Bc3+ {[%emt 0:00:07]} 61. Kd1 {[%emt 0:00:11]} Kxe3 {[%emt 0:00:05]} 62. Nc5 {[%emt 0:00:05]} Bxa2 {[%emt 0:00:11]} 63. Kc1 {[%emt 0:00:01]} b3 {[%emt 0:00:05]} 64. Na4 {[%emt 0:00:02]} b2+ {[%emt 0:00:26]} 65. Nxb2 {[%emt 0:00:05]} Bxb2+ {[%emt 0:00:04]} 66. Kc2 {[%emt 0:00:01]} Bd4 {[%emt 0:00:04]} 67. h3 {[%emt 0:00:06]} gxh3 {[%emt 0:00:03]} 68. g4 {[%emt 0:00:01]} h2 {[%emt 0:00:02]} 69. g5 {[%emt 0:00:01]} h1=Q {[%emt 0:00:05]} 70. g6 {[%emt 0:00:01]} Qb1# 0-1

[Event "29th Czech Open-Rapid 2018"]
[Site "Pardubice"]
[Date "2018.07.18"]
[Round "3"]
[White "Khmelev, Mikhail"]
[Black "Chekletsov, Ilya"]
[Result "0-1"]
[ECO "B53"]
[WhiteElo "1972"]
[BlackElo "2395"]
[Annotator "NA"]
[PlyCount "80"]
[EventDate "2018.07.18"]
[EventType "swiss"]
[EventCountry "CZE"]
[SourceTitle "playchess.com"]
[Source "ChessBase"]
[SourceQuality "1"]
[TimeControl "900+10"]

1. e4 {[%emt 0:00:00]} c5 {[%emt 0:00:00]} 2. Nf3 {[%emt 0:00:00]} d6 {[%emt 0:00:00]} 3. d4 {[%emt 0:00:00]} cxd4 {[%emt 0:00:00]} 4. Qxd4 {[%emt 0:00:00]} Nc6 {[%emt 0:00:00]} 5. Bb5 {[%emt 0:00:00]} Bd7 {[%emt 0:00:00]} 6. Qd3 {[%emt 0:00:00]} Rc8 {[%emt 0:01:08]} 7. c4 {[%emt 0:00:15]} g6 {[%emt 0:01:20]} 8. Nc3 {[%emt 0:00:12]} Bg7 {[%emt 0:00:03]} 9. O-O {[%emt 0:00:03]} Nf6 {[%emt 0:00:04]} 10. h3 {[%emt 0:00:06]} O-O {[%emt 0:00:04]} 11. Bxc6 {[%emt 0:00:12]} bxc6 {[%emt 0:00:04]} 12. Bg5 {[%emt 0:00:28]} Qa5 {[%emt 0:00:10]} 13. e5 {[%emt 0:01:18]} dxe5 {[%emt 0:01:51]} 14. Nxe5 {[%emt 0:01:51]} Bxh3 {[%emt 0:03:01]} 15. Bxf6 {[%emt 0:02:21]} Bf5 {[%emt 0:00:27]} 16. Qf3 {[%emt 0:00:48]} Bxf6 {[%emt 0:00:07]} 17. Ng4 {[%emt 0:02:44]} Bxg4 {[%emt 0:00:18]} 18. Qxg4 {[%emt 0:00:02]} Bxc3 {[%emt 0:00:01]} 19. bxc3 {[%emt 0:00:01]} Qxc3 {[%emt 0:01:24]} 20. Rae1 {[%emt 0:00:00]} e6 {[%emt 0:00:04]} 21. Re3 {[%emt 0:00:03]} Qf6 {[%emt 0:00:08]} 22. Rf3 {[%emt 0:00:08]} Qe5 {[%emt 0:00:08]} 23. Rh3 {[%emt 0:00:11]} Rfd8 {[%emt 0:00:42]} 24. Rb1 {[%emt 0:00:12]} Rd4 25. Qf3 {[%emt 0:01:01]} Rcd8 {[%emt 0:00:36]} 26. g3 {[%emt 0:00:29]} Qf5 {[%emt 0:00:20]} 27. Qxf5 {[%emt 0:00:04]} gxf5 {[%emt 0:00:01]} 28. Rb7 {[%emt 0:00:01]} R8d7 {[%emt 0:00:05]} 29. Rb4 {[%emt 0:00:03]} Rd2 {[%emt 0:01:32]} 30. Kg2 {[%emt 0:00:12]} Rxa2 {[%emt 0:00:05]} 31. Rh1 {[%emt 0:00:13]} Rdd2 {[%emt 0:00:03]} 32. Rf1 {[%emt 0:00:02]} Rdb2 {[%emt 0:00:03]} 33. Rxb2 {[%emt 0:00:03]} Rxb2 {[%emt 0:00:01]} 34. Ra1 {[%emt 0:00:02]} Rb4 {[%emt 0:00:08]} 35. c5 {[%emt 0:00:08]} Rb5 {[%emt 0:00:03]} 36. Rxa7 {[%emt 0:00:01]} Rxc5 {[%emt 0:00:01]} 37. Kf3 {[%emt 0:00:01]} Kg7 {[%emt 0:00:04]} 38. Kf4 {[%emt 0:00:05]} Rc4+ 39. Ke5 {[%emt 0:00:15]} Rc2 {[%emt 0:00:12]} 40. f4 {[%emt 0:00:01]} Rd2 {[%emt 0:00:01] Kd4} 0-1

[Event "29th Czech Open-Rapid 2018"]
[Site "Pardubice"]
[Date "2018.07.18"]
[Round "3"]
[White "Mlcak, Viktor"]
[Black "Vinklarek, Ondrej"]
[Result "0-1"]
[ECO "B01"]
[WhiteElo "1939"]
[BlackElo "2071"]
[Annotator "NA RC"]
[PlyCount "28"]
[EventDate "2018.07.18"]
[EventType "swiss"]
[EventCountry "CZE"]
[SourceTitle "playchess.com"]
[Source "ChessBase"]
[SourceQuality "1"]
[TimeControl "900+10"]

1. e4 {[%emt 0:00:00]} d5 {[%emt 0:00:00]} 2. exd5 {[%emt 0:00:00]} Qxd5 {[%emt 0:00:00]} 3. Nf3 {[%emt 0:00:00]} Nf6 {[%emt 0:00:33]} 4. d4 {[%emt 0:00:07]} e6 {[%emt 0:01:00]} 5. c4 {[%emt 0:00:22]} Qd8 {[%emt 0:01:19]} 6. Be2 {[%emt 0:00:14]} c5 {[%emt 0:00:26]} 7. O-O {[%emt 0:00:42]} Nc6 {[%emt 0:00:24]} 8. dxc5 {[%emt 0:01:25]} Qxd1 {[%emt 0:00:12]} 9. Rxd1 {[%emt 0:00:13]} Bxc5 {[%emt 0:00:01]} 10. Nc3 {[%emt 0:00:21]} O-O {[%emt 0:00:32]} 11. Bg5 {[%emt 0:00:23]} Ng4 {[%emt 0:01:35]} 12. Ne4 {[%emt 0:00:48]} Bb6 {[%emt 0:00:47]} 13. h3 {[%emt 0:02:00]} f5 {[%emt 0:00:02]} 14. hxg4 {[%emt 0:09:21]} fxe4 {[%emt 0:00:04]} 0-1